bitfinex/quotes_ETHUSD_20250505
["timestamp","ask_amount","ask_price","bid_price","bid_amount"]
[1746465584497,5.51726134,1812.5,1812.2,7.3627199]
[1746465585014,5.51723464,1812.6,1812.3,4.633]
[1746465585825,5.51728527,1812.5,1812.3,4.633]
[1746465586028,5.51728527,1812.5,1812.3,5.28077601]
[1746465586326,5.51723464,1812.6,1812.3,5.33594773]
[1746465586634,5.51717964,1812.6,1812.3,5.28077601]
[1746465586834,5.51717964,1812.6,1812.4,0.8271]
[1746465588043,5.51724137,1812.5,1812.4,0.8271]
[1746465589232,5.51717964,1812.6,1812.4,0.8271]
[1746465589416,5.51717964,1812.6,1812.4,0.88227031]
[1746465589619,5.51717964,1812.6,1812.4,0.8822697]
[1746465590017,5.51717964,1812.6,1812.4,0.8271]
[1746465593644,5.51724137,1812.5,1812.4,0.8271]
[1746465594348,5.51714092,1812.6,1812.4,1.75847894]
[1746465597356,11.03435795,1812.6,1812.4,0.8271]
[1746465598846,5.51724137,1812.5,1812.4,0.8271]
[1746465599755,5.51754579,1812.4,1812.3,5.3919]
[1746465599955,5.51724137,1812.5,1812.3,5.3919]
[1746465601551,11.03470903,1812.5,1812.3,5.3919]
[1746465601758,5.51724137,1812.5,1812.3,5.3919]
[1746465603324,5.51711361,1812.6,1812.3,5.3919]
[1746465603529,5.51682386,1812.7,1812.4,0.05516963]
[1746465603756,5.51682386,1812.7,1812.5,0.7839]
[1746465607668,5.51644325,1812.8,1812.5,0.83906549]
[1746465607875,5.51644325,1812.8,1812.5,3.98981343]
[1746465608064,11.03306261,1812.8,1812.5,3.98981343]
[1746465608259,5.51644325,1812.8,1812.5,4.88609435]
[1746465608458,5.51644325,1812.8,1812.5,4.94125859]
[1746465608857,5.51618212,1812.9,1812.5,10.40305774]
[1746465609370,5.51618212,1812.9,1812.5,15.92010943]
[1746465609675,5.51583782,1813.0,1812.6,5.51681809]
[1746465609883,5.51583782,1813.0,1812.7,0.55168181]
[1746465610238,5.51583782,1813.0,1812.7,6.86288096]
[1746465610477,5.51583782,1813.0,1812.7,1.34628181]
[1746465610886,5.51560311,1813.1,1812.8,5.57145376]
[1746465611101,5.51471541,1813.4,1813.0,0.7946]
[1746465611102,5.51479194,1813.4,1813.0,0.7946]
[1746465611386,5.51461386,1813.4,1813.2,4.00051343]
[1746465611585,5.51461386,1813.4,1813.2,4.40056477]
[1746465613893,5.51480725,1813.3,1813.1,4.622]
[1746465614053,5.5151114,1813.2,1813.1,4.622]
[1746465614649,5.51480725,1813.3,1813.1,4.622]
[1746465614849,5.51480725,1813.3,1813.1,4.67714732]
[1746465615564,5.51485013,1813.3,1813.1,4.67714732]
[1746465615764,5.51463005,1813.4,1813.2,0.46771473]
[1746465615989,5.51436982,1813.5,1813.3,0.7968]
[1746465616167,11.02885848,1813.5,1813.3,0.7968]
[1746465616365,5.51450314,1813.4,1813.3,0.7968]
[1746465616580,11.02883946,1813.5,1813.3,0.7968]
[1746465616794,11.02883946,1813.5,1813.3,1.24384282]
[1746465616997,5.51450314,1813.4,1813.3,1.24384282]
[1746465618486,5.51436982,1813.5,1813.3,1.24384282]
[1746465618692,11.0288601,1813.5,1813.3,1.24384282]
[1746465619008,5.51436982,1813.5,1813.3,1.24384282]
[1746465619179,5.51376479,1813.7,1813.4,3.20591343]
[1746465619371,11.02699686,1813.8,1813.5,0.37573042]
[1746465619569,5.51360703,1813.7,1813.5,0.32059134]
[1746465619784,5.51360703,1813.7,1813.5,0.37572723]
[1746465620083,5.51360703,1813.7,1813.5,0.32059134]
[1746465620814,11.02744905,1813.7,1813.5,0.32059134]
[1746465620972,5.51360703,1813.7,1813.5,0.32059134]
[1746465621614,5.51344762,1813.8,1813.5,0.37572725]
[1746465621812,5.51344762,1813.8,1813.5,0.32059134]
[1746465621973,5.51344762,1813.8,1813.5,0.37572709]
[1746465622172,11.02701404,1813.8,1813.5,0.32059134]
[1746465622373,5.51344762,1813.8,1813.5,5.88989312]
[1746465622578,11.0270045,1813.8,1813.6,0.58898931]
[1746465622881,5.51361824,1813.7,1813.5,0.32059134]
[1746465624115,6.34089501,1813.6,1813.1,10.64295106]
[1746465624329,5.51461858,1813.4,1813.1,10.90488793]
[1746465625452,5.51419906,1813.5,1813.1,10.90476851]
[1746465625731,5.51419906,1813.5,1813.1,10.90471471]
[1746465625899,5.51419906,1813.5,1813.2,8.77615301]
[1746465626082,5.51419906,1813.5,1813.2,9.7830002]
[1746465626289,5.51451829,1813.4,1813.2,7.81491343]
[1746465626610,11.02865528,1813.5,1813.2,7.87005775]
[1746465626975,11.02866034,1813.5,1813.2,7.87005775]
[1746465627421,5.51454691,1813.4,1813.2,7.81491343]
[1746465627896,5.51454691,1813.4,1813.2,7.87005776]
[1746465628097,5.51454691,1813.4,1813.2,7.81491343]
[1746465629523,5.51480725,1813.3,1813.2,7.81491343]
[1746465629729,5.51454691,1813.4,1813.2,7.81491343]
[1746465629890,5.51454691,1813.4,1813.2,4.609]
[1746465630540,5.51437914,1813.5,1813.2,4.609]
[1746465630744,5.51437914,1813.5,1813.2,11.26839354]
[1746465630939,5.51437914,1813.5,1813.2,11.21324919]
[1746465631129,11.02885978,1813.5,1813.2,4.609]
[1746465631445,11.02880232,1813.5,1813.2,4.609]
[1746465632038,5.51437914,1813.5,1813.2,4.609]
[1746465632241,5.51437914,1813.5,1813.2,4.66414349]
[1746465632739,5.51437914,1813.5,1813.2,10.17920894]
[1746465633104,5.51394544,1813.6,1813.3,6.28629888]
[1746465633551,5.51394544,1813.6,1813.3,0.7715]
[1746465633850,5.51427835,1813.5,1813.3,0.7715]
[1746465635245,5.51394544,1813.6,1813.3,0.7715]
[1746465635429,11.02812306,1813.6,1813.3,0.7715]
[1746465635661,5.51394544,1813.6,1813.3,0.7715]
[1746465635976,11.02807684,1813.6,1813.3,0.7715]
[1746465636132,5.51394544,1813.6,1813.3,0.7715]
[1746465637035,5.51394544,1813.6,1813.3,6.28629503]
[1746465637235,5.51394544,1813.6,1813.3,8.30080819]
[1746465637775,5.51378443,1813.7,1813.4,5.51449939]
[1746465637981,5.51371547,1813.7,1813.4,8.72041282]
[1746465638338,5.51371547,1813.7,1813.4,3.20591343]
[1746465638537,11.02760861,1813.7,1813.4,3.20591343]
[1746465638746,5.51371547,1813.7,1813.4,3.20591343]
[1746465638976,5.51400166,1813.6,1813.3,8.3006405]
[1746465639296,5.51400166,1813.6,1813.3,2.78601316]
[1746465639466,5.51400166,1813.6,1813.3,8.30077866]
[1746465639665,5.51400166,1813.6,1813.4,0.83007787]
[1746465641090,5.51400166,1813.6,1813.3,2.78601316]
[1746465641244,5.51400166,1813.6,1813.3,8.30080487]
[1746465642372,5.51400166,1813.6,1813.3,8.30081749]
[1746465642741,5.51400166,1813.6,1813.3,12.90981749]
[1746465643197,6.30299593,1813.8,1813.3,6.62351316]
[1746465643363,5.51433786,1813.5,1813.3,4.609]
[1746465643561,6.27380318,1813.7,1813.4,0.83974198]
[1746465643890,5.51370318,1813.7,1813.4,0.7846]
[1746465644388,5.51370318,1813.7,1813.4,6.29895915]
[1746465644590,5.51370318,1813.7,1813.5,0.62989591]
[1746465644794,5.51345376,1813.8,1813.5,0.62989591]
[1746465645286,5.51359973,1813.7,1813.5,0.62989591]
[1746465645688,5.51345376,1813.8,1813.5,6.14402836]
[1746465645856,11.02763865,1813.7,1813.5,0.62989591]
[1746465646055,11.02763865,1813.7,1813.4,0.7846]
[1746465646267,5.51392092,1813.6,1813.4,0.7846]
[1746465646551,5.51377622,1813.7,1813.4,0.7846]
[1746465646754,11.02761969,1813.7,1813.4,0.7846]
[1746465646994,5.51377622,1813.7,1813.4,0.7846]
[1746465648187,5.5139271,1813.6,1813.4,0.7846]
[1746465648352,5.5139271,1813.6,1813.4,2.19601034]
[1746465649093,5.51377622,1813.7,1813.4,7.71050335]
[1746465649301,5.51377622,1813.7,1813.4,2.19601034]
[1746465649599,6.27328645,1813.9,1813.4,7.7103163]
[1746465649803,5.51333917,1813.8,1813.4,10.71034439]
[1746465649968,5.51333917,1813.8,1813.5,1.07103444]
[1746465650166,5.51360429,1813.7,1813.5,1.07103444]
[1746465650594,5.51389501,1813.6,1813.5,1.07103444]
[1746465650931,5.51389501,1813.6,1813.3,7.609]
[1746465651306,5.51389501,1813.6,1813.3,13.12378221]
[1746465652835,5.51389501,1813.6,1813.3,7.609]
[1746465653036,5.51389501,1813.6,1813.3,13.12370113]
[1746465653339,5.51360429,1813.7,1813.4,5.51448526]
[1746465653493,5.51389539,1813.6,1813.4,2.18440998]
[1746465655435,5.51370875,1813.7,1813.5,0.8048]
[1746465655833,11.02756971,1813.7,1813.5,0.8048]
[1746465656232,11.02752512,1813.7,1813.5,0.8048]
[1746465656444,5.51370875,1813.7,1813.5,1.103721]
[1746465657500,11.02753884,1813.7,1813.5,1.103721]
[1746465657735,5.51389501,1813.6,1813.5,0.298921]
[1746465658240,5.51389501,1813.6,1813.3,17.13959506]
[1746465659340,11.02755979,1813.7,1813.3,17.13959506]
[1746465660544,5.51401895,1813.6,1813.3,11.62481343]
[1746465660956,5.51401895,1813.6,1813.3,17.13958829]
[1746465661658,5.51372657,1813.7,1813.3,17.13958829]
[1746465661869,5.51402321,1813.6,1813.4,6.32195883]
[1746465662823,11.02817003,1813.6,1813.4,6.32195883]
[1746465663027,5.51402321,1813.6,1813.4,4.608]
[1746465663231,11.02814333,1813.6,1813.4,4.608]
[1746465663557,5.51374198,1813.7,1813.4,4.608]
[1746465663759,11.02756714,1813.7,1813.4,4.608]
[1746465664055,5.51374198,1813.7,1813.4,10.12246868]
[1746465664258,5.51341437,1813.8,1813.5,1.01224687]
[1746465664443,5.51316509,1813.9,1813.6,5.56900855]
[1746465664758,5.51316509,1813.9,1813.6,0.05513633]
[1746465665550,5.51316509,1813.9,1813.6,5.56901622]
[1746465665761,5.51339994,1813.8,1813.6,0.05513633]
[1746465665967,5.51339994,1813.8,1813.6,1.0607746]
[1746465666351,5.51339994,1813.8,1813.5,4.83264687]
[1746465666764,5.5136846,1813.7,1813.5,4.83264687]
[1746465667578,5.51339994,1813.8,1813.5,4.83264687]
[1746465667884,5.51314806,1813.9,1813.5,4.83264687]
[1746465668093,5.51342495,1813.8,1813.5,10.34667463]
[1746465668258,5.51342495,1813.8,1813.6,1.03466746]
[1746465668465,5.51342495,1813.8,1813.5,4.83264687]
[1746465669695,5.51284369,1814.0,1813.7,5.51358574]
[1746465669878,5.51284369,1814.0,1813.7,0.7732]
[1746465670256,11.02577273,1814.0,1813.7,0.7732]
[1746465670560,5.5130289,1813.9,1813.7,0.7732]
[1746465670771,5.51328702,1813.8,1813.7,0.7732]
[1746465671099,5.5130289,1813.9,1813.7,0.7732]
[1746465671695,5.51328702,1813.8,1813.7,1.4019046]
[1746465672001,5.5130289,1813.9,1813.7,0.7732]
[1746465673702,11.02626316,1813.9,1813.7,0.7732]
[1746465673923,5.5130289,1813.9,1813.7,0.7732]
[1746465674467,5.51284517,1814.0,1813.7,0.7732]
[1746465675571,5.51301145,1813.9,1813.7,0.7732]
[1746465675807,5.51301145,1813.9,1813.7,1.40189202]
[1746465676204,5.51301145,1813.9,1813.7,6.00989202]
[1746465676534,5.51301145,1813.9,1813.7,5.23669202]
[1746465677535,5.51284517,1814.0,1813.7,5.23669202]
[1746465677741,5.51284517,1814.0,1813.7,6.01139202]
[1746465677950,5.51284517,1814.0,1813.8,0.6011392]
[1746465679005,11.02577725,1814.0,1813.8,0.6011392]
[1746465679223,5.51284517,1814.0,1813.8,0.6011392]
[1746465680038,11.02575933,1814.0,1813.8,0.6011392]
[1746465680340,0.8242,1814.2,1813.8,0.6011392]
[1746465680341,6.33629186,1814.2,1813.8,0.6011392]
[1746465680639,6.33629186,1814.2,1813.8,6.11428124]
[1746465680945,5.51196395,1814.3,1813.9,7.0012178]
[1746465682224,5.51196395,1814.3,1813.9,6.94609636]
[1746465682429,5.51196395,1814.3,1813.9,7.00121721]
[1746465683010,5.51219466,1814.2,1813.9,1.43322812]
[1746465684146,5.51219466,1814.2,1813.9,6.94620204]
[1746465684347,5.51219466,1814.2,1814.0,0.6946202]
[1746465684845,0.7603,1814.4,1813.9,1.43322812]
[1746465685045,5.51233128,1814.2,1813.9,1.43322812]
[1746465685207,11.02462765,1814.2,1813.9,1.43322812]
[1746465685407,5.51229637,1814.2,1813.9,1.43322812]
[1746465686109,5.51239376,1814.1,1813.9,1.43322812]
[1746465686407,5.51229637,1814.2,1813.9,1.43322812]
[1746465689933,5.51237624,1814.1,1813.9,1.43322812]
[1746465692447,5.5122002,1814.2,1813.9,1.43322812]
[1746465692664,5.5122002,1814.2,1813.9,6.94619307]
[1746465692818,5.5123874,1814.1,1813.9,1.43322812]
[1746465693021,5.5122002,1814.2,1813.9,1.43322812]
[1746465693464,11.02452001,1814.2,1813.9,1.43322812]
[1746465693623,5.5122002,1814.2,1813.9,1.43322812]
[1746465693937,5.51238261,1814.1,1813.9,1.43322812]
[1746465694650,5.51223142,1814.2,1813.9,1.43322812]
[1746465694850,5.512385,1814.1,1813.8,5.25345106]
[1746465695050,5.51276463,1814.0,1813.9,4.605]
[1746465695253,5.51276463,1814.0,1813.8,5.3085777]
[1746465695429,5.51276463,1814.0,1813.8,9.9135777]
[1746465695759,5.51276463,1814.0,1813.8,9.85845106]
[1746465695969,5.51250151,1814.1,1813.8,9.91357783]
[1746465696137,5.51250151,1814.1,1813.8,6.27971607]
[1746465696651,11.02513264,1814.1,1813.8,6.27971607]
[1746465696840,5.51250151,1814.1,1813.8,6.27971607]
[1746465697530,5.51250151,1814.1,1813.8,11.79295506]
[1746465697828,5.51250151,1814.1,1813.8,11.73782829]
[1746465698653,5.51250151,1814.1,1813.8,6.2245893]
[1746465698966,5.51272476,1814.0,1813.8,6.27971597]
[1746465699165,5.51272476,1814.0,1813.8,4.605]
[1746465700270,11.02510228,1814.1,1813.8,4.605]
[1746465700577,11.02510228,1814.1,1813.8,4.6601268]
[1746465700727,5.51280549,1814.0,1813.8,4.6601268]
[1746465701066,5.51280549,1814.0,1813.8,4.605]
[1746465701738,11.02573539,1814.0,1813.8,4.605]
[1746465702267,5.51280549,1814.0,1813.8,4.605]
[1746465702931,5.513591,1813.7,1813.6,9.90565106]
[1746465703136,5.513591,1813.7,1813.6,4.6522]
[1746465714828,6.31242259,1813.8,1813.6,4.6522]
[1746465714990,5.51317107,1813.9,1813.6,5.4224]
[1746465715177,5.51338825,1813.8,1813.6,6.83663826]
[1746465715509,11.02696337,1813.8,1813.6,6.83663826]
[1746465716523,5.51338825,1813.8,1813.6,6.83663826]
[1746465716700,11.02690747,1813.8,1813.6,5.4224]
[1746465717722,5.51338825,1813.8,1813.6,5.4224]
[1746465717921,5.51281769,1814.0,1813.7,5.51356657]
[1746465718093,5.51281769,1814.0,1813.6,10.93609631]
[1746465718618,5.51252038,1814.1,1813.7,5.56865233]
[1746465718824,11.02512608,1814.1,1813.8,0.55686523]
[1746465719023,5.51252038,1814.1,1813.8,1.32706523]
[1746465719703,5.51252038,1814.1,1813.8,6.84025615]
[1746465720326,5.51252038,1814.1,1813.8,6.89538339]
[1746465720694,5.51252038,1814.1,1813.8,6.84025615]
[1746465720910,11.81744598,1814.3,1813.9,0.68402562]
[1746465721111,5.51160887,1814.4,1814.0,6.34072443]
[1746465721316,5.51178902,1814.3,1814.0,5.4322]
[1746465721529,5.51211715,1814.2,1814.0,5.4322]
[1746465721813,5.51161846,1814.4,1814.1,6.05559362]
[1746465722445,5.51116386,1814.5,1814.2,6.33872938]
[1746465722818,5.51116386,1814.5,1814.2,0.8267]
[1746465723206,5.51158659,1814.4,1814.2,0.8267]
[1746465724752,5.51119703,1814.5,1814.2,0.8267]
[1746465724947,5.51119703,1814.5,1814.2,1.51492669]
[1746465724948,5.5114816,1814.4,1814.2,1.51492669]
[1746465725932,5.5114816,1814.4,1814.2,0.8267]
[1746465727058,5.51132586,1814.5,1814.2,0.8267]
[1746465727261,11.02271283,1814.5,1814.1,6.05539351]
[1746465727420,5.51159159,1814.4,1814.1,0.54322]
[1746465727621,5.51131915,1814.5,1814.1,6.05559401]
[1746465727816,5.51131915,1814.5,1814.2,1.4291594]
[1746465728242,11.02274828,1814.5,1814.2,1.4291594]
[1746465728453,5.51159584,1814.4,1814.2,1.4291594]
[1746465728655,5.51135287,1814.5,1814.2,0.8236]
[1746465732077,5.51150631,1814.4,1814.2,0.8236]
[1746465732454,5.51136585,1814.5,1814.2,0.8236]
[1746465735476,0.8132,1814.7,1814.2,6.3907574]
[1746465735776,5.51069762,1814.7,1814.4,0.8046]
[1746465735980,5.51069762,1814.7,1814.4,1.75680657]
[1746465736884,11.02149984,1814.7,1814.4,1.75680657]
[1746465737283,5.51086444,1814.6,1814.4,1.75680657]
[1746465737466,11.0215223,1814.7,1814.4,0.8046]
[1746465737650,5.51070628,1814.7,1814.4,0.8046]
[1746465737856,5.51086063,1814.6,1814.4,0.8046]
[1746465738384,5.51070628,1814.7,1814.4,0.8046]
[1746465738948,11.02155369,1814.7,1814.4,0.8046]
[1746465739381,5.51100904,1814.6,1814.4,1.43623381]
[1746465739647,5.51100904,1814.6,1814.4,0.8046]
[1746465740485,5.51070628,1814.7,1814.4,0.8046]
[1746465740688,11.0215215,1814.7,1814.4,0.8046]
[1746465741123,5.51070628,1814.7,1814.4,0.8046]
[1746465741323,11.02150951,1814.7,1814.4,0.8046]
[1746465741620,5.51085679,1814.6,1814.4,1.89642608]
[1746465741780,5.51070628,1814.7,1814.4,1.89642608]
[1746465743377,5.51070628,1814.7,1814.4,7.40788298]
[1746465743822,5.51070628,1814.7,1814.4,1.89642608]
[1746465744123,5.51070628,1814.7,1814.4,7.46296926]
[1746465744520,5.51070628,1814.7,1814.4,1.95153412]
[1746465744811,5.51070628,1814.7,1814.4,1.89642608]
[1746465745113,5.51059399,1814.7,1814.4,7.46297569]
[1746465746713,5.51059399,1814.7,1814.4,1.95153405]
[1746465747212,5.51043959,1814.8,1814.4,7.46292735]
[1746465747510,11.02096757,1814.8,1814.4,7.46292735]
[1746465748310,0.8127,1814.9,1814.4,1.89642608]
[1746465748513,6.32278132,1814.9,1814.5,5.51093926]
[1746465748727,5.51027289,1814.8,1814.4,12.6611961]
[1746465749012,5.51027289,1814.8,1814.4,12.66112482]
[1746465749915,5.51027289,1814.8,1814.4,18.17239805]
[1746465750119,5.51027289,1814.8,1814.4,12.66112482]
[1746465750284,5.51027289,1814.8,1814.5,1.26611248]
[1746465750723,5.51027289,1814.8,1814.5,6.77727231]
[1746465753049,5.51069767,1814.7,1814.5,1.26611248]
[1746465753639,5.51039864,1814.8,1814.5,1.26611248]
[1746465754149,5.51057764,1814.7,1814.5,1.26611248]
[1746465754445,5.51039864,1814.8,1814.5,1.26611248]
[1746465754610,5.50991352,1815.0,1814.6,0.8134]
[1746465754814,5.5099642,1814.9,1814.6,6.32416948]
[1746465755031,5.5099642,1814.9,1814.6,7.08371476]
[1746465758657,5.50991352,1815.0,1814.6,7.08371476]
[1746465759129,11.0190788,1815.1,1814.7,10.10954061]
[1746465759318,5.50973559,1815.0,1814.7,10.10954061]
[1746465759518,5.50973559,1815.0,1814.7,4.599]
[1746465760348,5.50973559,1815.0,1814.8,0.7923]
[1746465760855,5.50994545,1814.9,1814.7,4.599]
[1746465761216,5.50973559,1815.0,1814.7,4.599]
[1746465761657,5.50973559,1815.0,1814.7,10.10950504]
[1746465762316,5.50950677,1815.1,1814.7,10.10946221]
[1746465762526,5.50922368,1815.2,1814.9,0.7569]
[1746465762731,11.01851619,1815.2,1814.9,0.7569]
[1746465762950,5.50934271,1815.1,1814.9,0.7569]
[1746465764017,5.50934271,1815.1,1814.8,1.01094622]
[1746465764222,5.50977019,1815.0,1814.8,1.01094622]
[1746465764852,5.50934271,1815.1,1814.8,1.01094622]
[1746465765426,5.50934271,1815.1,1814.8,6.52116503]
[1746465765652,5.50934271,1815.1,1814.9,0.6521165]
[1746465765984,5.50964187,1815.0,1814.9,0.6521165]
[1746465766125,5.50964187,1815.0,1814.8,5.60994622]
[1746465766617,5.50910971,1815.2,1814.8,11.17513116]
[1746465766823,5.5093595,1815.1,1814.9,0.7558]
[1746465767028,5.50923717,1815.2,1814.9,1.94338323]
[1746465767346,5.50935382,1815.1,1814.9,1.94338323]
[1746465768542,5.50964187,1815.0,1814.9,1.94338323]
[1746465769157,5.50935382,1815.1,1814.9,1.94338323]
[1746465770662,5.50919105,1815.2,1814.9,1.94338323]
[1746465772261,5.50885609,1815.3,1815.0,5.50955424]
[1746465772461,11.01783254,1815.3,1815.0,1.27063885]
[1746465772632,5.50885609,1815.3,1815.0,1.27063885]
[1746465773334,5.50885609,1815.3,1815.0,6.78018251]
[1746465773660,5.50885609,1815.3,1815.0,1.27063885]
[1746465774253,11.01783358,1815.3,1815.0,1.27063885]
[1746465774564,5.50885609,1815.3,1815.0,6.78024099]
[1746465774775,0.7571,1815.2,1815.1,0.6780241]
[1746465775063,5.50931301,1815.2,1814.9,5.25345106]
[1746465776040,5.50925994,1815.2,1814.9,5.25345106]
[1746465776551,11.01852124,1815.2,1814.9,5.25345106]
[1746465776752,5.50943441,1815.1,1814.9,5.25345106]
[1746465777050,5.50943441,1815.1,1814.9,6.40501894]
[1746465777272,5.50943441,1815.1,1814.9,1.15156788]
[1746465778474,5.50925994,1815.2,1814.9,1.15156788]
[1746465778673,5.50934984,1815.1,1814.9,1.15156788]
[1746465779063,5.50925994,1815.2,1814.9,1.15156788]
[1746465780154,5.5092588,1815.2,1814.9,1.15156788]
[1746465780546,5.50934804,1815.1,1814.9,1.15156788]
[1746465781387,11.0184889,1815.2,1814.9,1.15156788]
[1746465781689,5.50934078,1815.1,1814.8,11.51588124]
[1746465781983,5.50921497,1815.2,1814.8,11.51588124]
[1746465782165,11.01853053,1815.2,1814.8,11.51588124]
[1746465782588,5.50921497,1815.2,1814.8,11.51588124]
[1746465783187,5.50935445,1815.1,1814.8,11.51588124]
[1746465783391,5.50935445,1815.1,1814.8,8.4249553]
[1746465783693,5.50921497,1815.2,1814.8,8.4249553]
[1746465784290,5.50888204,1815.3,1815.0,6.32423705]
[1746465784496,6.26570676,1815.4,1815.0,11.83370527]
[1746465784699,5.50829718,1815.5,1815.1,10.10517638]
[1746465784700,5.50837077,1815.5,1815.1,10.10517638]
[1746465784990,5.50837077,1815.5,1815.2,7.30192294]
[1746465785757,6.3329054,1815.6,1815.2,7.30192294]
[1746465785957,6.3329054,1815.6,1815.2,1.79291764]
[1746465786162,5.50834478,1815.5,1815.2,1.79291764]
[1746465786662,5.50845695,1815.4,1815.2,1.79291764]
[1746465787094,5.50873133,1815.3,1815.0,3.0]
[1746465787265,5.50913704,1815.2,1815.1,4.596]
[1746465789194,5.50964187,1815.0,1814.9,0.7824]
[1746465789502,4.00701343,1815.4,1814.9,5.3774]
[1746465789681,5.5094237,1815.1,1814.9,4.595]
[1746465790410,11.01900685,1815.1,1814.9,4.595]
[1746465790706,5.5094237,1815.1,1814.9,4.595]
[1746465793703,11.01900288,1815.1,1814.9,4.595]
[1746465794004,5.5094237,1815.1,1814.9,4.595]
[1746465796000,11.01901791,1815.1,1814.9,4.595]
[1746465796308,5.50994545,1814.9,1814.8,0.7952]
[1746465796510,5.50994545,1814.9,1814.8,4.596]
[1746465796873,5.5105527,1814.7,1814.5,4.596]
[1746465797609,5.51085638,1814.6,1814.5,4.596]
[1746465798593,5.5105527,1814.7,1814.5,4.596]
[1746465798594,5.5105527,1814.7,1814.5,5.3815]
[1746465798996,5.5105527,1814.7,1814.5,4.596]
[1746465799309,5.51085638,1814.6,1814.5,4.596]
[1746465800067,5.51116009,1814.5,1814.4,3.70561305]
[1746465801670,5.51116009,1814.5,1814.3,4.596]
[1746465803207,11.02257186,1814.5,1814.3,4.596]
[1746465803407,5.51116009,1814.5,1814.3,4.596]
[1746465803584,11.02261766,1814.5,1814.3,4.596]
[1746465803786,5.51116009,1814.5,1814.3,4.596]
[1746465805438,11.02257653,1814.5,1814.3,4.596]
[1746465805718,5.51116009,1814.5,1814.3,4.596]
[1746465807936,5.51146384,1814.4,1814.3,4.596]
[1746465808285,5.51135341,1814.5,1814.3,4.596]
[1746465808515,11.0227503,1814.5,1814.3,4.596]
[1746465808818,5.51135341,1814.5,1814.3,4.596]
[1746465809185,11.02279888,1814.5,1814.3,4.596]
[1746465809387,5.51135341,1814.5,1814.3,4.596]
[1746465810228,5.51135341,1814.5,1814.2,19.0165]
[1746465810229,5.51135341,1814.5,1814.2,22.826]
[1746465810431,5.51135341,1814.5,1814.3,2.2826]
[1746465812317,5.51103375,1814.6,1814.3,2.2826]
[1746465812622,5.51068982,1814.7,1814.4,6.34255814]
[1746465812918,5.51068982,1814.7,1814.4,0.7761]
[1746465813519,11.02151459,1814.7,1814.4,0.7761]
[1746465813728,11.02151459,1814.7,1814.4,1.95372936]
[1746465814194,5.51088313,1814.6,1814.4,1.95372936]
[1746465814388,5.51088313,1814.6,1814.4,0.7761]
[1746465816185,5.51090955,1814.6,1814.4,0.7761]
[1746465818118,11.02203166,1814.6,1814.4,0.7761]
[1746465818322,11.02205585,1814.6,1814.4,0.7761]
[1746465818486,11.02201054,1814.6,1814.4,0.7761]
[1746465818688,0.7549,1814.7,1814.2,10.61755106]
[1746465819022,5.51128762,1814.5,1814.2,6.02255106]
[1746465819333,5.51128762,1814.5,1814.2,5.3641]
[1746465819931,5.51128762,1814.5,1814.2,10.8761636]
[1746465820751,5.51128762,1814.5,1814.2,5.3641]
[1746465821645,5.51128762,1814.5,1814.2,10.87616582]
[1746465821842,5.51100794,1814.6,1814.3,5.5117431]
[1746465822151,11.02153984,1814.7,1814.4,0.7604]
[1746465822446,5.51085893,1814.6,1814.4,0.7604]
[1746465823358,5.5112851,1814.5,1814.2,19.36122139]
[1746465824021,5.51085893,1814.6,1814.2,19.36122139]
[1746465824319,5.51085893,1814.6,1814.2,22.14856757]
[1746465824647,5.51120689,1814.5,1814.2,22.14856757]
[1746465825345,5.51120689,1814.5,1814.2,16.89511651]
[1746465826246,5.51085893,1814.6,1814.2,16.89511651]
[1746465826909,5.51085893,1814.6,1814.2,16.89505996]
[1746465827110,5.51085893,1814.6,1814.3,6.44015108]
[1746465827310,5.51037618,1814.8,1814.5,0.7516]
[1746465827552,5.51037458,1814.8,1814.5,0.7516]
[1746465828148,5.51037458,1814.8,1814.5,6.26269422]
[1746465830834,5.51037458,1814.8,1814.5,0.7516]
[1746465830835,5.51055323,1814.7,1814.5,0.7516]
[1746465831042,5.51055323,1814.7,1814.4,10.76490663]
[1746465831243,11.0213466,1814.7,1814.4,7.05010421]
[1746465831434,5.51085955,1814.6,1814.3,7.20162487]
[1746465831753,5.51055323,1814.7,1814.4,0.05510883]
[1746465832056,5.51055323,1814.7,1814.4,5.5664059]
[1746465832352,5.51040601,1814.8,1814.4,5.5664059]
[1746465832556,11.02095757,1814.8,1814.4,5.5664059]
[1746465832957,5.51066274,1814.7,1814.4,5.5664059]
[1746465833159,5.51066274,1814.7,1814.4,6.84319872]
[1746465833456,5.51066274,1814.7,1814.4,11.43819872]
[1746465833645,5.51066274,1814.7,1814.4,11.38308989]
[1746465834361,6.26946048,1814.9,1814.5,6.26757964]
[1746465834522,6.26946048,1814.9,1814.5,6.3226885]
[1746465834723,5.51034251,1814.8,1814.5,6.3226885]
[1746465834942,5.51034251,1814.8,1814.5,7.83324186]
[1746465835562,5.51034251,1814.8,1814.5,2.26715336]
[1746465836070,5.51057208,1814.7,1814.5,2.26715336]
[1746465836730,11.02137472,1814.7,1814.5,0.7566]
[1746465836932,11.02136168,1814.7,1814.4,6.65219282]
[1746465837130,5.51090644,1814.6,1814.4,6.65219282]
[1746465837364,5.51057208,1814.7,1814.4,6.65219282]
[1746465837859,5.51042207,1814.8,1814.4,6.65219282]
[1746465838162,5.51042207,1814.8,1814.5,6.23139307]
[1746465838463,5.51042207,1814.8,1814.5,6.1762872]
[1746465838859,5.51042207,1814.8,1814.5,6.23139307]
[1746465839158,5.51010097,1814.9,1814.6,0.7804]
[1746465839325,5.50975722,1815.0,1814.6,6.29114878]
[1746465839527,5.50975722,1815.0,1814.6,7.53788721]
[1746465839940,5.50996824,1814.9,1814.6,7.53788721]
[1746465840564,5.50975722,1815.0,1814.6,7.53788721]
[1746465841064,5.50994964,1814.9,1814.6,7.53788721]
[1746465841266,5.50975722,1815.0,1814.7,0.75378872]
[1746465843039,7.21431874,1815.4,1814.8,6.32718295]
[1746465843237,5.50946995,1815.1,1814.9,4.593]
[1746465844353,5.50920095,1815.2,1814.9,4.593]
[1746465844936,5.50920095,1815.2,1814.9,10.10285479]
[1746465845141,5.50920095,1815.2,1815.0,0.8221]
[1746465851768,5.5087625,1815.3,1815.0,6.33164029]
[1746465852173,5.5087625,1815.3,1815.0,0.8221]
[1746465853440,5.5087625,1815.3,1815.0,6.33169151]
[1746465854778,5.5087625,1815.3,1815.0,0.8221]
[1746465855090,5.5087625,1815.3,1815.0,6.33160892]
[1746465855249,5.50853927,1815.4,1815.1,5.50925199]
[1746465855455,5.50827771,1815.5,1815.1,5.50925199]
[1746465855763,5.50845415,1815.4,1815.1,5.50925199]
[1746465855964,5.50827771,1815.5,1815.1,11.01842373]
[1746465856189,5.50827771,1815.5,1815.1,5.50917174]
[1746465856355,5.50827771,1815.5,1815.2,0.55091717]
[1746465857591,11.01668485,1815.5,1815.2,0.55091717]